bitfinex/quotes_SOLUSD_20250528
["timestamp","ask_amount","ask_price","bid_price","bid_amount"]
[1748391998626,15.87991342,176.63,176.62,9.22]
[1748391999196,21.54146581,176.63,176.62,9.22]
[1748392001511,15.87991342,176.63,176.62,9.22]
[1748392003712,21.54146581,176.63,176.62,9.22]
[1748392005839,18.64964886,176.62,176.57,9.22]
[1748392006134,18.64964886,176.62,176.57,44.28]
[1748392006431,15.87991342,176.58,176.57,9.22]
[1748392006600,15.87991342,176.58,176.57,44.28]
[1748392007840,21.54306893,176.58,176.57,9.22]
[1748392008009,21.54306893,176.58,176.57,44.28]
[1748392010638,19.8184675,176.61,176.57,44.28]
[1748392010943,15.87991342,176.58,176.57,44.28]
[1748392011917,19.8184675,176.61,176.57,44.28]
[1748392012244,15.87991342,176.58,176.57,44.28]
[1748392012536,21.54306893,176.58,176.57,44.28]
[1748392019322,19.8184675,176.61,176.57,44.28]
[1748392019508,15.87991342,176.58,176.57,44.28]
[1748392020436,21.54306893,176.58,176.57,44.28]
[1748392023821,5.66315551,176.58,176.57,44.28]
[1748392024018,26.0,176.68,176.57,70.42216157]
[1748392024257,15.87991342,176.62,176.6,26.0]
[1748392024561,15.87991342,176.64,176.61,35.06]
[1748392025825,19.81094696,176.67,176.61,35.06]
[1748392026027,15.87991342,176.64,176.61,35.06]
[1748392026440,14.1506764,176.67,176.61,35.06]
[1748392026633,15.87991342,176.64,176.61,35.06]
[1748392027143,14.1506764,176.67,176.61,35.06]
[1748392027325,30.03058982,176.67,176.64,26.0]
[1748392027522,30.03058982,176.67,176.65,44.26]
[1748392028028,5.66027056,176.67,176.65,44.26]
[1748392028230,4.63595607,176.81,176.69,26.0]
[1748392028427,4.63595607,176.81,176.66,87.7417]
[1748392028428,8.3222,176.84,176.73,26.0]
[1748392028626,15.87991342,176.76,176.74,44.26]
[1748392028827,15.87991342,176.75,176.69,26.0]
[1748392029059,18.64964886,176.8,176.7,44.26]
[1748392029350,15.87991342,176.79,176.71,0.14216157]
[1748392029648,15.87991342,176.78,176.71,0.14216157]
[1748392030255,15.87991342,176.79,176.71,0.14216157]
[1748392030546,15.87991342,176.78,176.71,0.14216157]
[1748392030926,18.64964886,176.83,176.71,1.67666157]
[1748392031119,15.87991342,176.78,176.71,1.67666157]
[1748392031345,15.87991342,176.81,176.76,0.14216157]
[1748392031551,19.79190228,176.84,176.76,0.14216157]
[1748392031552,19.79190228,176.84,176.77,44.24]
[1748392031762,15.87991342,176.83,176.77,44.24]
[1748392032060,5.65482922,176.84,176.78,0.14216157]
[1748392032251,15.87991342,176.82,176.77,44.24]
[1748392032445,15.87991342,176.79,176.77,44.24]
[1748392033022,15.87991342,176.8,176.77,44.24]
[1748392033222,19.79190228,176.84,176.77,44.24]
[1748392033533,15.87991342,176.8,176.77,44.24]
[1748392034134,5.65642853,176.79,176.77,44.24]
[1748392037556,15.87991342,176.81,176.77,44.24]
[1748392037557,5.65611995,176.8,176.77,44.24]
[1748392037749,5.65611995,176.8,176.78,0.14216157]
[1748392039457,15.87991342,176.83,176.78,0.14216157]
[1748392040033,15.87991342,176.82,176.78,0.14216157]
[1748392040552,5.65553352,176.82,176.78,0.14216157]
[1748392041064,21.53544694,176.82,176.78,0.14216157]
[1748392041638,15.87991342,176.81,176.78,0.14216157]
[1748392041832,5.65553352,176.82,176.79,26.0]
[1748392041833,15.87991342,176.8,176.79,26.0]
[1748392042037,15.87991342,176.8,176.77,35.2]
[1748392042238,15.87991342,176.78,176.77,9.2]
[1748392042561,15.87991342,176.78,176.77,44.2]
[1748392042936,14.13654414,176.85,176.8,26.0]
[1748392043166,14.13654414,176.85,176.81,35.0]
[1748392043167,15.87991342,176.83,176.81,35.0]
[1748392043343,15.87991342,176.82,176.81,35.0]
[1748392044059,14.13654414,176.85,176.81,35.0]
[1748392044360,15.87991342,176.82,176.81,35.0]
[1748392044666,15.87991342,176.83,176.81,35.0]
[1748392044851,21.53538225,176.82,176.81,35.0]
[1748392045858,5.65546883,176.82,176.81,35.0]
[1748392047165,15.87991342,176.82,176.81,35.0]
[1748392048755,21.53538225,176.82,176.81,35.0]
[1748392054874,21.53538225,176.82,176.79,9.2]
[1748392055058,5.65546883,176.82,176.8,34.98]
[1748392055259,15.87991342,176.81,176.8,34.98]
[1748392056780,21.53570211,176.81,176.8,34.98]
[1748392059276,18.64964886,176.8,176.74,9.2]
[1748392059476,15.87991342,176.75,176.74,9.2]
[1748392059787,15.87991342,176.75,176.73,34.98]
[1748392059964,15.87991342,176.74,176.73,34.98]
[1748392060381,15.87991342,176.74,176.71,81.38]
[1748392060587,15.87991342,176.74,176.72,34.98]
[1748392060969,5.65834889,176.73,176.72,34.98]
[1748392061785,21.53826231,176.73,176.72,34.98]
[1748392061996,5.65834889,176.73,176.72,34.98]
[1748392062204,35.68413454,176.73,176.69,9.2]
[1748392062362,19.80422112,176.73,176.72,34.98]
[1748392062687,35.68413454,176.73,176.72,34.98]
[1748392066793,21.53762204,176.75,176.72,34.98]
[1748392067266,5.65770862,176.75,176.74,26.0]
[1748392067474,15.87991342,176.76,176.75,26.0]
[1748392067475,21.53738905,176.76,176.75,26.0]
[1748392067673,21.53738905,176.76,176.75,60.98]
[1748392067888,5.65747563,176.76,176.75,60.98]
[1748392068270,5.6567485,176.78,176.75,70.18]
[1748392068768,21.53666192,176.78,176.75,44.18]
[1748392068982,5.6567485,176.78,176.75,44.18]
[1748392069184,21.53666192,176.78,176.75,44.18]
[1748392070491,15.87991342,176.77,176.75,44.18]
[1748392071467,14.14053738,176.8,176.75,44.18]
[1748392071708,15.87991342,176.78,176.75,44.18]
[1748392072494,15.87991342,176.78,176.76,0.14216157]
[1748392072694,5.65642853,176.79,176.76,1.68626157]
[1748392074485,21.53634195,176.79,176.76,1.68626157]
[1748392075091,5.65642853,176.79,176.76,1.68626157]
[1748392075283,21.53634195,176.79,176.76,1.68626157]
[1748392076991,5.65642853,176.79,176.76,1.68626157]
[1748392077193,21.53634195,176.79,176.76,1.68626157]
[1748392077379,15.87991342,176.78,176.76,1.68626157]
[1748392077577,21.53686843,176.78,176.76,1.68626157]
[1748392078610,21.53686843,176.78,176.75,54.38087567]
[1748392078809,15.87991342,176.76,176.75,54.52303724]
[1748392079597,15.87991342,176.77,176.75,54.52303724]
[1748392079804,5.65738854,176.76,176.75,54.52303724]
[1748392081002,21.53730196,176.76,176.75,19.40087567]
[1748392081185,21.53730196,176.76,176.75,54.38087567]
[1748392081389,5.65738854,176.76,176.75,54.38087567]
[1748392081591,21.53730196,176.76,176.75,19.40087567]
[1748392081801,21.53730196,176.76,176.75,54.38087567]
[1748392082096,5.65738854,176.76,176.75,54.38087567]
[1748392082495,5.6567485,176.78,176.75,54.52303724]
[1748392083582,5.65649295,176.79,176.76,0.14216157]
[1748392083895,21.53640637,176.79,176.76,0.14216157]
[1748392085392,21.53640637,176.79,176.77,9.18]
[1748392085588,15.87991342,176.78,176.77,9.18]
[1748392085904,21.53666192,176.78,176.77,9.18]
[1748392086507,24.65944886,176.91,176.81,0.14216157]
[1748392086712,15.87991342,176.84,176.82,34.98]
[1748392086886,15.87991342,176.84,176.83,9.18]
[1748392088201,21.53474264,176.84,176.83,9.18]
[1748392088613,5.65482922,176.84,176.83,9.18]
[1748392088794,21.53474264,176.84,176.83,9.18]
[1748392089686,35.6718157,176.84,176.78,9.18]
[1748392089889,19.79190228,176.84,176.79,34.96]
[1748392090117,15.87991342,176.8,176.79,34.96]
[1748392090421,15.87991342,176.8,176.78,9.18]
[1748392090601,15.87991342,176.8,176.79,34.96]
[1748392091997,48.0660484,176.84,176.79,34.96]
[1748392092193,15.87991342,176.8,176.79,34.96]
[1748392093305,21.53602201,176.8,176.79,34.96]
[1748392098116,5.65610859,176.8,176.79,34.96]
[1748392098289,21.53602201,176.8,176.79,34.96]
[1748392105018,21.53602201,176.8,176.77,9.18]
[1748392105226,15.87991342,176.78,176.77,9.18]
[1748392105404,15.87991342,176.78,176.77,44.14]
[1748392108326,21.53666192,176.78,176.77,44.14]
[1748392111726,5.6567485,176.78,176.77,44.14]
[1748392111906,15.87991342,176.78,176.77,44.14]
[1748392113927,21.53666192,176.78,176.77,44.14]
[1748392116421,5.6567485,176.78,176.77,44.14]
[1748392116625,21.53666192,176.78,176.77,44.14]
[1748392117530,21.53666192,176.78,176.77,9.18]
[1748392117830,21.53666192,176.78,176.77,44.14]
[1748392123541,15.87991342,176.78,176.77,44.14]
[1748392124641,21.53666192,176.78,176.77,44.14]
[1748392127859,14.13848543,176.83,176.77,44.14]
[1748392128028,15.87991342,176.79,176.77,44.14]
[1748392128642,15.87991342,176.79,176.77,133.14]
[1748392129726,5.6567485,176.78,176.77,133.14]
[1748392131043,21.53644118,176.79,176.77,133.14]
[1748392134540,15.87991342,176.82,176.78,0.14216157]
[1748392135339,5.65482922,176.84,176.78,0.14216157]
[1748392135516,15.87991342,176.83,176.78,89.14216157]
[1748392136047,15.87991342,176.82,176.78,89.14216157]
[1748392136351,21.53565706,176.82,176.78,89.14216157]
[1748392136841,21.53517593,176.83,176.78,89.14216157]
[1748392137042,5.65526251,176.83,176.78,89.14216157]
[1748392138154,5.65387007,176.87,176.78,94.7988229]
[1748392138353,5.65465031,176.85,176.81,26.0]
[1748392138646,21.53378349,176.87,176.82,35.08216157]
[1748392138952,15.87991342,176.86,176.82,89.14216157]
[1748392139121,15.87991342,176.85,176.82,89.14216157]
[1748392139331,15.87991342,176.86,176.83,44.1]
[1748392139753,5.65450947,176.85,176.83,44.1]
[1748392141463,15.87991342,176.85,176.83,44.1]
[1748392141765,15.87991342,176.84,176.83,9.16]
[1748392141961,15.87991342,176.84,176.83,44.1]
[1748392142846,15.87991342,176.85,176.83,44.1]
[1748392143251,14.13455332,176.88,176.83,44.1]
[1748392143448,15.87991342,176.85,176.83,133.1]
[1748392143657,5.65482922,176.84,176.83,133.1]
[1748392144460,21.53474264,176.84,176.83,133.1]
[1748392144766,5.65482922,176.84,176.83,133.1]
[1748392145069,21.53474264,176.84,176.83,133.1]
[1748392145771,5.65482922,176.84,176.83,133.1]
[1748392147766,21.53474264,176.84,176.83,133.1]
[1748392148649,5.65482922,176.84,176.83,133.1]
[1748392151150,5.65387007,176.87,176.83,133.24216157]
[1748392151353,21.53378349,176.87,176.83,133.24216157]
[1748392151552,21.53378349,176.87,176.84,0.14216157]
[1748392152454,21.53378349,176.87,176.84,89.14216157]
[1748392154255,15.87991342,176.88,176.84,89.14216157]
[1748392155190,15.87991342,176.89,176.84,89.14216157]
[1748392155669,15.87991342,176.88,176.84,89.14216157]
[1748392155877,5.65291124,176.9,176.84,89.14216157]
[1748392156057,15.87991342,176.88,176.84,89.14216157]
[1748392156456,21.53361224,176.88,176.84,89.14216157]
[1748392157678,15.87991342,176.89,176.84,0.14216157]
[1748392157872,15.87991342,176.89,176.84,235.84216157]
[1748392158268,5.65291124,176.9,176.84,235.84216157]
[1748392158469,21.53282466,176.9,176.84,235.84216157]
[1748392161182,5.65355042,176.88,176.84,235.84216157]
[1748392161376,22.34491342,176.94,176.84,241.49692979]
[1748392161377,14.12942578,176.94,176.84,241.49692979]
[1748392161963,15.87991342,176.92,176.84,241.49692979]
[1748392162257,5.65131393,176.95,176.88,0.14216157]
[1748392162459,21.53122735,176.95,176.89,44.06]
[1748392163170,5.65131393,176.95,176.89,133.06]
[1748392163577,21.53122735,176.95,176.89,133.06]
[1748392164084,15.87991342,176.91,176.89,133.06]
[1748392164463,15.87991342,176.91,176.9,34.9]
[1748392165911,19.77959875,176.95,176.9,34.9]
[1748392166090,15.87991342,176.92,176.9,34.9]
[1748392167486,15.87991342,176.91,176.9,34.9]
[1748392167870,21.53250513,176.91,176.9,34.9]
[1748392169091,21.53250513,176.91,176.89,98.16]
[1748392169288,5.65259171,176.91,176.9,34.9]
[1748392169594,21.53250513,176.91,176.9,34.9]
[1748392171301,21.53250513,176.91,176.89,98.16]
[1748392171472,15.87991342,176.9,176.89,133.06]
[1748392171790,15.87991342,176.9,176.89,44.06]
[1748392172089,21.53282466,176.9,176.89,44.06]
[1748392172991,21.53282466,176.9,176.89,9.16]
[1748392173174,21.53282466,176.9,176.89,44.04]
[1748392173697,21.53282466,176.9,176.89,9.16]
[1748392173994,21.53282466,176.9,176.89,44.04]
[1748392176395,21.53282466,176.9,176.89,9.16]
[1748392176695,21.53282466,176.9,176.89,44.04]
[1748392177985,21.53282466,176.9,176.89,9.16]
[1748392178191,15.87991342,176.9,176.89,44.04]
[1748392178501,19.78223028,176.93,176.89,44.04]
[1748392178704,15.87991342,176.9,176.89,44.04]
[1748392179808,21.53282466,176.9,176.89,44.04]
[1748392179981,15.76856807,176.9,176.89,44.04]
[1748392180395,15.76856807,176.9,176.89,9.16]
[1748392180596,15.76856807,176.9,176.89,44.04]
[1748392182404,19.78223028,176.93,176.89,44.04]
[1748392182610,10.11565683,176.9,176.89,44.04]
[1748392184702,10.11565683,176.9,176.89,9.16]
[1748392184913,15.76856807,176.9,176.89,9.16]
[1748392185092,15.76856807,176.9,176.84,9.14]
[1748392185413,10.11565683,176.85,176.84,9.14]
[1748392187012,15.7701663,176.85,176.84,9.14]
[1748392188011,21.47079969,176.85,176.84,9.14]
[1748392189813,18.64964886,176.87,176.84,9.14]
[1748392190113,15.81629022,176.85,176.84,9.14]
[1748392190910,21.47079969,176.85,176.84,9.14]
[1748392191812,5.65450947,176.85,176.84,9.14]
[1748392192021,21.47079969,176.85,176.84,9.14]
[1748392193605,5.65450947,176.85,176.84,9.14]
[1748392193917,21.47079969,176.85,176.84,9.14]
[1748392194292,37.28708991,176.85,176.84,9.14]
[1748392194495,70.07301244,176.85,176.79,9.14]
[1748392194709,15.81629022,176.8,176.79,9.14]
[1748392195106,15.81629022,176.8,176.79,44.02]
[1748392196311,5.65482922,176.84,176.79,44.02]
[1748392196504,15.81629022,176.83,176.79,133.02]
[1748392197116,15.81629022,176.83,176.8,0.14216157]
[1748392197306,15.81629022,176.84,176.8,0.14216157]
[1748392199019,15.81629022,176.83,176.8,0.14216157]
[1748392200696,15.81629022,176.85,176.81,26.0]
[1748392200892,15.81629022,176.86,176.81,26.0]
[1748392201516,21.47059408,176.86,176.81,26.0]
[1748392202003,21.47059408,176.86,176.81,31.65573775]
[1748392202208,21.47059408,176.86,176.82,26.0]
[1748392202420,21.47026105,176.87,176.83,34.88]
[1748392202629,15.81629022,176.87,176.83,123.88]
[1748392202918,15.81629022,176.89,176.84,0.14216157]
[1748392203095,15.81629022,176.92,176.88,26.0]
[1748392203297,15.81629022,176.94,176.89,34.88]
[1748392203599,15.81629022,176.93,176.89,34.88]
[1748392205599,21.46828727,176.93,176.89,34.88]
[1748392208111,15.81629022,176.92,176.89,34.88]
[1748392208423,15.81629022,176.91,176.89,34.88]
[1748392208604,5.65199705,176.93,176.89,123.88]
[1748392208803,15.81629022,176.92,176.89,123.88]
[1748392209697,21.46862543,176.92,176.89,123.88]
[1748392210101,15.81629022,176.9,176.85,9.14]
[1748392210322,5.65233521,176.92,176.85,9.14]
[1748392210323,15.81629022,176.86,176.85,9.14]
[1748392210527,15.81629022,176.86,176.85,44.0]
[1748392210824,15.81629022,176.87,176.85,44.0]
[1748392211000,15.81629022,176.87,176.85,9.14]
[1748392211325,15.81629022,176.87,176.86,34.86]
[1748392212040,21.47016029,176.87,176.86,34.86]
[1748392213906,21.47016029,176.87,176.85,9.14]
[1748392214223,5.65387007,176.87,176.86,34.86]
[1748392214526,19.78183461,176.93,176.86,34.86]
[1748392214712,18.64964886,176.92,176.86,34.86]
[1748392215220,15.81629022,176.87,176.85,9.14]
[1748392215424,15.81629022,176.86,176.85,9.14]
[1748392215620,15.81629022,176.86,176.85,44.0]
[1748392216130,54.19759835,176.93,176.85,44.0]
[1748392216131,19.78183461,176.93,176.85,44.0]
[1748392216308,15.81629022,176.9,176.85,133.0]
[1748392216506,15.81629022,176.96,176.89,0.14216157]
[1748392216757,6.0136,177.02,176.94,0.14216157]
[1748392216758,5.65065654,176.98,176.94,0.14216157]
[1748392216904,2.75511891,177.09,176.94,0.14216157]
[1748392216905,5.64812199,177.05,176.98,26.0]
[1748392217113,15.81629022,177.05,176.99,35.00216157]
[1748392217312,15.81629022,177.02,176.99,35.00216157]
[1748392217607,15.81629022,177.0,176.98,36.1760398]
[1748392217806,15.81629022,177.0,176.99,34.86]
[1748392217807,15.31629022,177.0,176.99,34.86]
[1748392218932,20.96600773,177.0,176.99,34.86]
[1748392220035,20.96600773,177.0,176.98,45.0360398]
[1748392220241,15.81629022,176.99,176.98,45.0360398]
[1748392220427,15.81629022,176.99,176.98,10.1760398]
[1748392220645,5.64971751,177.0,176.98,10.1760398]
[1748392221028,15.81629022,177.0,176.98,10.1760398]
[1748392221650,15.81629022,176.99,176.98,10.1760398]
[1748392223334,21.46632694,176.99,176.98,10.1760398]
[1748392223524,5.65003672,176.99,176.98,10.1760398]
[1748392223743,21.46632694,176.99,176.98,10.1760398]
[1748392228947,15.81629022,177.0,176.98,10.1760398]
[1748392229921,15.81629022,176.99,176.98,10.1760398]
[1748392230128,19.76842698,177.05,176.98,99.1760398]
[1748392230356,15.81629022,177.02,176.98,99.1760398]
[1748392231138,15.81629022,177.02,176.99,0.14216157]
[1748392232145,14.12030499,177.05,176.99,0.14216157]
[1748392232334,15.81629022,177.03,176.99,0.14216157]
[1748392232728,15.81629022,177.05,176.99,89.14216157]
[1748392232930,5.64748404,177.07,177.01,0.14216157]
[1748392233146,5.64748404,177.07,177.02,43.96]
[1748392233147,19.76619415,177.07,177.02,43.96]
[1748392233325,35.58248437,177.07,177.02,132.96]
[1748392233656,15.81629022,177.06,177.02,132.96]
[1748392234146,21.46377426,177.07,177.02,132.96]
[1748392234328,21.46377426,177.07,177.03,0.14216157]
[1748392235843,5.64748404,177.07,177.03,0.14216157]
[1748392236145,5.64748404,177.07,177.03,261.84216157]
[1748392236345,15.81629022,177.09,177.03,261.84216157]
[1748392237855,28.22682893,177.14,177.03,261.84216157]
[1748392237856,15.81629022,177.08,177.03,261.84216157]
[1748392238268,5.64748404,177.07,177.03,261.84216157]
[1748392240374,21.46377426,177.07,177.03,261.84216157]
[1748392240667,5.64748404,177.07,177.03,261.84216157]
[1748392241169,21.46377426,177.07,177.03,261.84216157]
[1748392242252,14.1173491,177.09,177.03,261.84216157]
[1748392242457,15.81629022,177.09,177.03,261.84216157]
[1748392243284,19.76172999,177.11,177.03,261.84216157]
[1748392243500,15.81629022,177.08,177.03,261.84216157]
[1748392244056,15.81629022,177.05,177.04,34.82]
[1748392244256,5.64844103,177.04,177.03,261.84216157]
[1748392244465,21.46450255,177.05,177.03,159.08216157]
[1748392244660,5.64821233,177.05,177.03,159.08216157]
[1748392246363,5.647803,177.06,177.03,159.08216157]
[1748392246768,5.647803,177.06,177.04,34.8]
[1748392249176,19.76172999,177.11,177.05,0.14216157]
[1748392249379,15.81629022,177.08,177.05,89.14216157]
[1748392250078,15.81629022,177.07,177.05,89.14216157]
[1748392250489,15.81629022,177.08,177.05,89.14216157]
[1748392251359,5.64748404,177.07,177.05,89.14216157]
[1748392252765,15.81629022,177.07,177.05,89.14216157]
[1748392253757,15.81629022,177.07,177.06,9.1]
[1748392254653,21.46377426,177.07,177.06,9.1]
[1748392255956,21.46377426,177.07,177.06,98.1]
[1748392258078,5.64748404,177.07,177.06,98.1]
[1748392258267,21.46377426,177.07,177.06,98.1]
[1748392260385,21.46377426,177.07,177.06,9.1]
[1748392260553,51.39877459,177.07,177.01,9.1]
[1748392260753,15.81629022,177.02,177.01,9.1]
[1748392261384,21.46536942,177.02,177.01,9.1]
[1748392261558,21.46536942,177.02,176.98,10.1760398]
[1748392261761,15.81629022,176.99,176.96,9.1]
[1748392261964,15.81629022,176.97,176.96,43.9]
[1748392262467,15.81629022,176.97,176.96,9.1]
[1748392262665,31.63258044,176.97,176.96,9.1]
[1748392262972,50.2822293,176.97,176.91,9.1]
[1748392263269,15.81629022,176.92,176.91,9.1]
[1748392263470,21.46856243,176.92,176.91,43.9]
[1748392264273,21.46856243,176.92,176.91,9.1]
[1748392264881,35.59924296,176.92,176.87,81.24]
[1748392265087,15.81629022,176.88,176.87,116.04]
[1748392265472,21.46984064,176.88,176.87,116.04]
[1748392266686,21.46984064,176.88,176.87,81.24]
[1748392266888,5.65297925,176.9,176.87,116.04]
[1748392267089,15.81629022,176.89,176.87,116.04]
[1748392268965,15.81629022,176.88,176.87,116.04]
[1748392273433,14.12842473,176.95,176.87,116.18216157]
[1748392273604,44.64964886,176.97,176.87,116.04]
[1748392273605,15.81629022,176.89,176.87,116.04]
[1748392273941,15.81629022,176.88,176.87,81.24]
[1748392274109,15.81629022,176.88,176.86,43.9]
[1748392274306,15.81629022,176.87,176.86,43.9]
[1748392275846,21.47016029,176.87,176.86,43.9]
[1748392276056,21.47016029,176.87,176.86,43.92]
[1748392276825,21.47016029,176.87,176.86,9.1]
[1748392277028,40.11980915,176.87,176.86,9.1]
[1748392277337,40.11980915,176.87,176.79,89.0]
[1748392277338,54.25448433,176.87,176.83,34.82]
[1748392277653,15.81629022,176.84,176.83,34.82]
[1748392278022,21.47111944,176.84,176.83,34.82]
[1748392279443,14.13264581,176.9,176.83,34.82]
[1748392279759,5.65323082,176.89,176.83,34.82]
[1748392279923,15.81629022,176.87,176.83,34.82]
[1748392280232,15.81629022,176.88,176.83,40.47503924]
[1748392281043,15.81629022,176.88,176.83,34.82]
[1748392281847,15.81629022,176.87,176.83,34.82]
[1748392282140,15.81629022,176.84,176.83,34.82]
[1748392282761,15.81629022,176.84,176.81,9.1]
[1748392282939,19.78981339,176.86,176.81,9.1]
[1748392282940,15.81629022,176.82,176.81,9.1]
[1748392284132,21.47175905,176.82,176.81,9.1]
[1748392285135,35.61043114,176.82,176.77,10.31781864]
[1748392285428,15.81629022,176.78,176.77,10.31781864]
[1748392286345,21.47303872,176.78,176.77,10.31781864]
[1748392286540,5.6567485,176.78,176.77,10.31781864]
[1748392286833,21.47303872,176.78,176.77,10.31781864]
[1748392287640,44.09015425,176.85,176.77,10.31781864]
[1748392287641,15.81629022,176.8,176.77,10.31781864]
[1748392288365,21.47255937,176.8,176.77,99.31781864]
[1748392289731,21.47214381,176.81,176.77,99.31781864]
[1748392289967,15.81629022,176.81,176.77,99.31781864]
[1748392290762,15.81629022,176.82,176.77,104.97480856]
[1748392291099,21.47152394,176.83,176.77,104.97480856]
[1748392291239,15.81629022,176.82,176.77,104.97480856]
[1748392291753,21.4718477,176.82,176.77,99.31781864]
[1748392292062,15.81629022,176.81,176.77,99.31781864]
[1748392294674,26.60004886,176.87,176.77,99.31781864]
[1748392294675,1.6639,176.87,176.78,26.14216157]
[1748392294855,15.81629022,176.84,176.79,34.82]
[1748392295175,15.81629022,176.84,176.79,123.82]
[1748392295370,21.47125659,176.84,176.79,123.82]
[1748392295857,5.65387007,176.87,176.82,26.0]
[1748392296065,15.81629022,176.88,176.83,43.92]
[1748392296268,5.65291124,176.9,176.83,132.92]
[1748392296455,15.81629022,176.89,176.83,132.92]
[1748392297051,21.46976613,176.89,176.83,138.57508747]
[1748392297391,5.65347591,176.89,176.84,0.14216157]
[1748392297574,5.6530057,176.9,176.84,0.14216157]
[1748392297870,5.65195274,176.93,176.88,26.0]
[1748392298167,5.65195274,176.93,176.89,43.92]
[1748392298370,5.65195274,176.93,176.89,132.92]
[1748392299091,15.81629022,176.91,176.89,98.1]
[1748392299388,15.81629022,176.9,176.89,132.92]
[1748392300655,21.46920146,176.9,176.89,132.92]
[1748392301275,21.46920146,176.9,176.89,98.1]
[1748392301478,40.11885032,176.9,176.89,9.1]
[1748392301869,50.06481329,176.9,176.89,9.1]
[1748392303697,64.19709141,176.9,176.86,34.82]
[1748392303909,25.76225319,176.87,176.86,34.82]
[1748392304803,19.78518936,176.9,176.86,34.82]
[1748392304804,31.41516443,176.9,176.86,34.82]
[1748392305687,25.76225319,176.89,176.86,34.82]
[1748392307219,5.65355042,176.88,176.86,34.82]
[1748392307381,25.76225319,176.87,176.84,35.1]
[1748392307591,25.76225319,176.87,176.85,34.8]
[1748392308420,25.76225319,176.91,176.85,123.8]
[1748392308703,25.76225319,176.91,176.86,0.14216157]
[1748392309477,5.65291124,176.9,176.86,0.14216157]
[1748392312009,5.65291124,176.9,176.86,89.14216157]
[1748392313502,25.76225319,176.89,176.86,89.0]
[1748392314104,31.41516443,176.9,176.86,89.0]
[1748392315992,45.54744255,176.9,176.86,89.0]
[1748392316210,25.76225319,176.88,176.86,89.0]
[1748392316535,25.76225319,176.89,176.87,34.8]
[1748392317725,25.76225319,176.88,176.87,34.8]
[1748392317928,31.41580361,176.88,176.87,34.8]
[1748392318424,31.41580361,176.88,176.87,43.88]
[1748392318623,5.65355042,176.88,176.87,43.88]
[1748392323533,5.65355042,176.88,176.87,9.08]
[1748392323739,5.65355042,176.88,176.87,43.88]
[1748392323940,14.13030098,176.93,176.87,132.88]
[1748392324123,21.45247448,176.92,176.87,132.88]
[1748392325847,15.80020227,176.91,176.87,132.88]
[1748392326525,5.65227221,176.92,176.87,132.88]
[1748392326726,15.80020227,176.91,176.87,132.88]
[1748392327546,5.65227221,176.92,176.87,89.0]
[1748392327547,15.80020227,176.88,176.87,89.0]
[1748392327742,15.80020227,176.88,176.86,9.08]
[1748392327938,21.45407234,176.87,176.86,43.88]
[1748392328242,21.45379387,176.88,176.86,43.88]
[1748392329033,5.6535916,176.88,176.86,43.88]
[1748392330123,5.65227221,176.92,176.86,43.88]
[1748392330432,15.80020227,176.9,176.86,132.88]
[1748392331035,15.80020227,176.89,176.86,132.88]
[1748392331342,15.80020227,176.87,176.86,98.08]
[1748392331524,15.80020227,176.87,176.86,43.86]
[1748392332433,21.45407234,176.87,176.86,9.08]
[1748392336625,21.45407234,176.87,176.86,43.86]
[1748392338640,14.13305236,176.9,176.86,43.86]
[1748392338857,15.80020227,176.87,176.86,43.86]
[1748392340682,21.45407234,176.87,176.86,43.86]
[1748392342097,15.80020227,176.87,176.86,43.86]
[1748392342951,21.45407234,176.87,176.86,43.86]
[1748392343274,15.80020227,176.9,176.86,43.86]
[1748392343963,15.80020227,176.9,176.86,132.86]
[1748392344165,15.80020227,176.89,176.86,132.86]
[1748392344856,15.80020227,176.87,176.86,132.86]
[1748392345058,21.45407234,176.87,176.86,132.86]
[1748392347516,21.45407234,176.87,176.86,9.08]
[1748392347693,40.1037212,176.87,176.86,9.08]
[1748392347879,70.03859865,176.87,176.82,89.0]